bitfinex-derivatives/quotes_SOLF0:USTF0_20260127
["timestamp","ask_amount","ask_price","bid_price","bid_amount"]
[1769532702196,56.22666078,126.29,126.23,7.1377]
[1769532702505,56.22666078,126.29,126.24,1.87096155]
[1769532705303,56.22666078,126.29,126.22,38.51410017]
[1769532705802,68.00922346,126.28,126.22,38.51410017]
[1769532706098,68.00922346,126.28,126.2,48.4257013]
[1769532706798,75.14452346,126.28,126.2,55.5653013]
[1769532709602,66.13826191,126.26,126.19,1.87096155]
[1769532709799,68.00922346,126.26,126.19,48.4257013]
[1769532711107,66.13826191,126.29,126.21,48.4257013]
[1769532711302,66.13826191,126.27,126.21,48.4257013]
[1769532711502,75.14522346,126.27,126.19,57.43656285]
[1769532711801,68.00922346,126.27,126.18,317.83096155]
[1769532712406,73.27526191,126.25,126.18,324.97166155]
[1769532712902,73.27526191,126.25,126.18,373.39736285]
[1769532713109,66.13826191,126.25,126.18,373.39736285]
[1769532713907,66.13826191,126.25,126.19,7.1402]
[1769532714111,66.13826191,126.25,126.19,55.5659013]
[1769532714601,66.13826191,126.25,126.2,1.87096155]
[1769532719104,7.1363,126.26,126.2,50.46419609]
[1769532719609,75.41370698,126.26,126.2,50.46419609]
[1769532719806,75.41370698,126.26,126.2,48.59323454]
[1769532720106,75.41430698,126.25,126.19,1.87096155]
[1769532720309,68.27740698,126.25,126.19,1.87096155]
[1769532720510,68.27740698,126.25,126.18,364.55323454]
[1769532720511,70.14836853,126.25,126.18,364.55323454]
[1769532720702,70.14836853,126.25,126.18,366.42419609]
[1769532721707,7.1375,126.24,126.18,373.56499609]
[1769532721999,68.27740698,126.25,126.19,48.59323454]
[1769532722204,68.27740698,126.25,126.2,1.87096155]
[1769532723502,68.27740698,126.27,126.22,1.87096155]
[1769532723708,68.27740698,126.28,126.22,50.46419609]
[1769532724002,68.27740698,126.28,126.22,1.87096155]
[1769532724912,75.41320698,126.27,126.22,1.87096155]
[1769532725609,68.27740698,126.27,126.22,1.87096155]
[1769532725915,68.27740698,126.29,126.22,48.59323454]
[1769532726113,68.27740698,126.29,126.23,50.46419609]
[1769532726415,75.41260698,126.28,126.23,1.87096155]
[1769532728315,68.27740698,126.28,126.23,1.87096155]
[1769532729207,75.41310698,126.27,126.23,1.87096155]
[1769532730509,68.27740698,126.25,126.21,1.87096155]
[1769532730714,68.27740698,126.25,126.19,57.6040428]
[1769532731109,110.9777,126.3,126.21,50.4642428]
[1769532731110,68.27740698,126.27,126.21,50.4642428]
[1769532731310,68.27740698,126.27,126.21,48.59328125]
[1769532731517,68.27740698,126.27,126.21,1.87096155]
[1769532731913,7.1364,126.26,126.21,1.87096155]
[1769532732112,68.27740698,126.27,126.21,1.87096155]
[1769532732911,75.41320698,126.27,126.21,1.87096155]
[1769532734913,68.27740698,126.27,126.21,50.4642428]
[1769532735517,68.27740698,126.27,126.23,1.87096155]
[1769532735720,75.41260698,126.29,126.23,1.87096155]
[1769532736019,68.27740698,126.27,126.19,48.59328125]
[1769532736213,68.27740698,126.27,126.22,7.1385]
[1769532736412,68.27740698,126.29,126.23,1.87096155]
[1769532737016,75.41210698,126.29,126.23,7.138]
[1769532739819,68.27740698,126.27,126.21,1.87096155]
[1769532740922,75.41340698,126.27,126.21,1.87096155]
[1769532741129,65.49948481,126.27,126.21,1.87096155]
[1769532741331,1.87096155,126.3,126.23,1.87096155]
[1769532741631,1.87619009,126.31,126.23,1.87619009]
[1769532742031,7.135,126.29,126.23,1.87619009]
[1769532742731,7.1352,126.28,126.2,1.87619009]
[1769532743126,67.96927531,126.27,126.2,1.87619009]
[1769532743326,69.8454654,126.27,126.2,1.87619009]
[1769532744336,67.96927531,126.27,126.2,62.08735131]
[1769532744633,67.96927531,126.27,126.22,1.87619009]
[1769532745433,73.01231594,126.29,126.24,1.87619009]
[1769532746632,73.01231594,126.29,126.22,69.22585131]
[1769532747428,65.87721594,126.27,126.2,9.01549009]
[1769532748633,65.87721594,126.27,126.2,69.22665131]
[1769532749034,73.01301594,126.27,126.21,1.87619009]
[1769532749336,65.87721594,126.27,126.21,9.01519009]
[1769532749537,65.87721594,126.27,126.21,69.22635131]
[1769532750141,65.87721594,126.3,126.23,1.87619009]
[1769532750338,73.01251594,126.28,126.22,9.01469009]
[1769532751035,65.87721594,126.28,126.22,9.01469009]
[1769532751233,110.9616,126.32,126.24,1.87619009]
[1769532751443,112.83229009,126.33,126.24,1.87619009]
[1769532751743,5.91244012,126.32,126.24,1.87619009]
[1769532752141,7.1343,126.3,126.24,68.6630118]
[1769532752443,1.87619009,126.33,126.26,1.87619009]
[1769532752746,9.00889009,126.33,126.26,1.87619009]
[1769532753342,73.01031594,126.32,126.25,73.92342171]
[1769532753543,73.01031594,126.32,126.26,1.87619009]
[1769532754044,73.01071594,126.31,126.25,68.6630118]
[1769532754244,65.87721594,126.28,126.21,66.78682171]
[1769532754444,65.87721594,126.28,126.22,1.87619009]
[1769532754645,73.01241594,126.28,126.22,1.87619009]
[1769532755237,1.87619009,126.29,126.22,75.8014118]
[1769532755438,65.87721594,126.3,126.22,68.6630118]
[1769532755745,65.87721594,126.3,126.24,1.87619009]
[1769532756240,73.01191594,126.29,126.24,1.87619009]
[1769532756439,65.87721594,126.29,126.24,1.87619009]
[1769532757440,73.01241594,126.28,126.22,9.01449009]
[1769532759149,7.1358,126.27,126.22,1.87619009]
[1769532759739,73.01301594,126.27,126.21,9.01529009]
[1769532760044,7.1366,126.26,126.21,1.87619009]
[1769532761045,73.01301594,126.27,126.21,1.87619009]
[1769532761244,63.09933189,126.27,126.21,1.87619009]
[1769532762043,63.09933189,126.27,126.21,9.01519009]
[1769532764150,55.96353189,126.27,126.21,9.01519009]
[1769532765548,55.96353189,126.27,126.22,7.1386]
[1769532771261,46.04984495,126.27,126.22,7.1386]
[1769532771660,9.01069009,126.3,126.23,75.8008118]
[1769532772368,617.23171254,126.35,126.2,66.78682171]
[1769532772369,9.01149009,126.28,126.2,66.78682171]
[1769532772654,1.87619009,126.28,126.21,68.6630118]
[1769532772866,7.79332197,126.31,126.23,1.87619009]
[1769532773055,1.87619009,126.31,126.23,1.87619009]
[1769532773355,65.87721594,126.3,126.23,1.87619009]
[1769532773955,73.01131594,126.3,126.23,9.01409009]
[1769532777766,73.01131594,126.3,126.23,7.1379]
[1769532780261,68.82216167,126.32,126.24,66.18862989]
[1769532780469,70.69835176,126.32,126.24,66.18862989]
[1769532780963,77.83255176,126.3,126.24,66.18862989]
[1769532781167,70.69835176,126.3,126.22,66.18862989]
[1769532782069,75.95686167,126.29,126.22,73.32712989]
[1769532782269,66.04521097,126.29,126.22,73.32712989]
[1769532782664,73.18041097,126.29,126.22,73.32712989]
[1769532784269,7.1354,126.28,126.22,73.32712989]
[1769532784865,68.82216167,126.28,126.22,66.18862989]
[1769532785171,68.82216167,126.28,126.21,1.87619009]
[1769532785172,68.82216167,126.27,126.21,1.87619009]
[1769532785767,75.95906167,126.25,126.2,66.18862989]
[1769532785973,75.95906167,126.25,126.19,1.87619009]
[1769532786371,68.82216167,126.23,126.18,11.6930098]
[1769532786574,68.82216167,126.21,126.15,1.87619009]
[1769532786874,68.82216167,126.21,126.15,9.01869009]
[1769532789772,68.82216167,126.19,126.12,495.47521998]
[1769532789975,68.82216167,126.19,126.13,68.06481998]
[1769532790673,1.87619009,126.2,126.13,68.06481998]
[1769532790875,70.69835176,126.2,126.14,7.143]
[1769532791065,68.82216167,126.2,126.14,73.33162989]
[1769532791264,70.69835176,126.22,126.15,68.06481998]
[1769532791664,68.82216167,126.22,126.15,68.06481998]
[1769532792168,75.96086167,126.22,126.15,1.87619009]
[1769532792364,1.87619009,126.21,126.14,1.87619009]
[1769532792574,70.69835176,126.21,126.14,68.06481998]
[1769532793775,70.69835176,126.21,126.15,7.142]
[1769532794276,68.82216167,126.21,126.15,7.142]
[1769532795768,75.96126167,126.21,126.15,7.142]
[1769532795968,77.83745176,126.21,126.15,7.142]
[1769532796477,77.83815176,126.2,126.13,7.1432]
[1769532796964,77.83815176,126.2,126.14,7.143]
[1769532797273,68.82216167,126.2,126.14,7.143]
[1769532798670,68.82216167,126.2,126.15,7.1424]
[1769532803381,68.82216167,126.2,126.16,7.1419]
[1769532804580,69.77900031,126.22,126.17,1.87850029]
[1769532804780,69.77900031,126.25,126.17,65.54909173]
[1769532805481,69.77900031,126.25,126.19,7.1401]
[1769532806883,69.77900031,126.25,126.19,65.54909173]
[1769532807082,69.77900031,126.25,126.21,1.87850029]
[1769532807482,69.77900031,126.28,126.23,1.87850029]
[1769532808185,69.77900031,126.28,126.24,7.1373]
[1769532808376,7.1335,126.31,126.24,7.1373]
[1769532808582,69.77900031,126.3,126.25,1.87850029]
[1769532808784,69.77900031,126.3,126.25,9.01530029]
[1769532808983,69.77900031,126.3,126.24,1.87850029]
[1769532810587,69.77900031,126.3,126.24,72.68619173]
[1769532812187,69.77900031,126.3,126.26,1.87850029]
[1769532816391,69.77900031,126.3,126.26,9.01450029]
[1769532816692,69.77900031,126.33,126.26,9.01450029]
[1769532818591,69.77900031,126.33,126.27,7.1355]
[1769532818787,69.77900031,126.33,126.28,1.87850029]
[1769532819689,69.77900031,126.33,126.24,316.34]
[1769532819996,76.91140031,126.33,126.26,1.87850029]
[1769532820897,69.77900031,126.33,126.26,9.01460029]
[1769532821498,69.77900031,126.33,126.27,7.1357]
[1769532824297,7.133,126.32,126.25,7.1363]
[1769532824598,69.77900031,126.31,126.25,7.1363]
[1769532825997,76.91250031,126.31,126.25,7.1363]
[1769532826205,69.77900031,126.31,126.25,7.1363]
[1769532826597,69.77900031,126.31,126.26,7.136]
[1769532826897,69.77900031,126.31,126.26,1.87850029]
[1769532827401,69.77900031,126.31,126.27,7.1357]
[1769532834506,67.05910328,126.35,126.27,68.97605705]
[1769532834695,67.05910328,126.35,126.26,1.87850029]
[1769532834899,67.05910328,126.33,126.26,1.87850029]
[1769532835306,67.05910328,126.31,126.25,67.09755676]
[1769532836705,67.05910328,126.31,126.27,7.1354]
[1769532839412,67.05910328,126.31,126.28,7.1351]
[1769532841012,67.05910328,126.31,126.27,7.1357]
[1769532841708,67.05910328,126.31,126.25,7.1363]
[1769532842012,110.9243,126.36,126.25,7.1363]
[1769532842013,67.05910328,126.29,126.25,7.1363]
[1769532843315,67.05910328,126.29,126.23,316.22]
[1769532843815,1.87850029,126.27,126.23,316.22]
[1769532844619,67.05910328,126.27,126.23,316.22]
[1769532844816,67.05910328,126.27,126.2,178.15275676]
[1769532845017,67.05910328,126.23,126.16,178.18905676]
[1769532845819,67.05910328,126.23,126.17,67.09755676]
[1769532846017,67.05910328,126.23,126.19,7.1397]
[1769532846218,67.05910328,126.23,126.17,67.09755676]
[1769532846618,1.87850029,126.21,126.17,67.09755676]
[1769532846921,67.05910328,126.21,126.15,646.42981617]
[1769532848012,1.87850029,126.21,126.15,646.42981617]
[1769532848216,1.87850029,126.21,126.16,67.09755676]
[1769532848819,1.87850029,126.21,126.16,74.23895676]
[1769532849020,1.87850029,126.21,126.15,690.43645941]
[1769532849021,67.05910328,126.21,126.15,579.33225941]
[1769532849221,1.87850029,126.2,126.15,646.42981617]
[1769532849922,1.87850029,126.21,126.15,757.53371617]
[1769532850918,67.05910328,126.23,126.17,67.09755676]
[1769532851122,1.87850029,126.22,126.17,67.09755676]
[1769532851324,370.746,126.32,126.18,67.09755676]
[1769532851325,1.87850029,126.24,126.18,67.09755676]
[1769532852028,1.87850029,126.24,126.2,7.1394]
[1769532852424,67.05910328,126.29,126.21,1.87850029]
[1769532852625,67.05910328,126.29,126.21,68.97605705]
[1769532853329,67.05910328,126.28,126.21,67.09755676]
[1769532853930,67.05910328,126.28,126.22,7.1385]
[1769532854128,67.05910328,126.23,126.16,178.19465676]
[1769532854433,67.05910328,126.23,126.17,316.32]
[1769532854628,67.05910328,126.23,126.18,7.1404]
[1769532855626,65.18060299,126.23,126.18,7.1404]
[1769532855828,67.05910328,126.23,126.18,7.1404]
[1769532858239,67.05910328,126.23,126.19,7.14]
[1769532860343,65.18060299,126.23,126.19,7.14]
[1769532863849,65.18060299,126.23,126.17,325.33950029]
[1769532864435,67.05910328,126.23,126.17,323.461]
[1769532864934,67.05910328,126.23,126.18,7.1408]
[1769532865548,65.18060299,126.23,126.18,7.1408]
[1769532867548,65.18060299,126.23,126.19,7.1401]
[1769532867949,67.05847242,126.23,126.17,316.36]
[1769532868346,67.05847242,126.23,126.15,1.87786943]
[1769532868551,67.05847242,126.23,126.15,318.23786943]
[1769532869953,68.24646089,126.21,126.16,7.1419]
[1769532870155,68.24646089,126.21,126.14,70.73328009]
[1769532871849,66.36859146,126.21,126.14,70.73328009]
[1769532872050,66.36859146,126.21,126.16,7.1419]
[1769532872250,66.36859146,126.21,126.14,70.73328009]
[1769532872451,66.36859146,126.21,126.16,1.87786943]
[1769532872648,66.36859146,126.21,126.17,7.1411]
[1769532875051,66.36859146,126.23,126.18,7.1406]
[1769532875864,73.50669146,126.23,126.17,7.1414]
[1769532876059,66.36859146,126.21,126.15,316.4]
[1769532877061,66.36859146,126.21,126.16,7.1419]
[1769532883563,66.36859146,126.21,126.17,7.1412]
[1769532883762,66.36859146,126.21,126.15,387.13328009]
[1769532884164,56.45178999,126.21,126.15,387.13328009]
[1769532885855,56.45178999,126.21,126.17,7.1409]
[1769532886263,56.45178999,126.21,126.17,1.87786943]
[1769532887771,56.45178999,126.21,126.15,318.31786943]
[1769532887964,56.45178999,126.21,126.15,316.44]
[1769532888968,56.45178999,126.21,126.16,7.1419]
[1769532893978,63.59108999,126.21,126.15,316.44]
[1769532894278,1.87786943,126.2,126.15,316.44]
[1769532894472,66.69865944,126.19,126.15,316.44]
[1769532894865,66.69865944,126.19,126.15,323.5823]
[1769532895972,66.69865944,126.19,126.15,7.1423]
[1769532896783,66.69865944,126.19,126.13,7.1431]
[1769532896784,66.69865944,126.17,126.13,7.1431]
[1769532896971,56.77994676,126.17,126.13,7.1431]
[1769532897283,58.65781619,126.17,126.13,7.1431]
[1769532899171,58.65781619,126.17,126.11,64.87977722]
[1769532899371,56.77994676,126.17,126.11,66.75764665]
[1769532899780,56.77994676,126.17,126.13,7.1434]
[1769532900472,66.69865944,126.2,126.14,72.02287722]
[1769532900781,72.69003439,126.19,126.14,7.1431]
[1769532901079,66.69865944,126.19,126.14,7.1431]
[1769532902878,68.57652887,126.19,126.14,7.1431]
[1769532903474,68.57652887,126.19,126.13,9.02146943]
[1769532906279,68.57652887,126.19,126.13,7.1436]
[1769532907979,75.71692887,126.19,126.12,7.1441]
[1769532912685,68.57652887,126.19,126.13,7.1435]
[1769532912886,68.57652887,126.19,126.12,64.87977722]
[1769532913077,66.69865944,126.19,126.13,66.75764665]
[1769532913679,66.69865944,126.19,126.15,1.87786943]
[1769532913980,66.69865944,126.22,126.15,1.87786943]
[1769532914183,72.68359042,126.21,126.15,1.87786943]
[1769532914480,66.69865944,126.21,126.15,1.87786943]
[1769532914684,66.69865944,126.21,126.16,7.1419]
[1769532918188,66.69865944,126.21,126.17,7.1413]
[1769532919189,66.69865944,126.21,126.16,7.1419]
[1769532919394,66.69865944,126.19,126.13,1.87786943]
[1769532920987,66.69865944,126.19,126.14,7.1425]
[1769532921487,66.69865944,126.19,126.15,7.1423]
[1769532922092,66.69865944,126.22,126.16,7.1415]
[1769532922392,66.69865944,126.22,126.15,68.50799175]
[1769532922393,5.98648,126.21,126.15,68.50799175]
[1769532922791,5.98648,126.21,126.15,66.63012232]
[1769532922991,5.98648,126.21,126.16,1.87786943]
[1769532923390,73.03089137,126.21,126.16,1.87786943]
[1769532923583,67.04441137,126.21,126.16,1.87786943]
[1769532923986,67.04441137,126.21,126.17,7.141]
[1769532924695,67.04441137,126.21,126.18,7.1407]
[1769532929100,67.04441137,126.21,126.16,72.88060399]
[1769532929302,67.04441137,126.21,126.16,9.01933841]
[1769532931002,67.04441137,126.21,126.17,7.1412]
[1769532935402,67.04441137,126.21,126.16,9.01983841]
[1769532935902,67.04441137,126.21,126.16,7.1419]
[1769532937101,67.04441137,126.21,126.16,9.01983841]
[1769532937303,64.06869081,126.23,126.17,65.73920399]
[1769532937500,64.06869081,126.25,126.19,65.73920399]
[1769532937904,65.94662922,126.25,126.19,7.1402]
[1769532940306,64.06869081,126.22,126.14,1.87793841]
[1769532940610,1.87793841,126.23,126.12,1.87793841]
[1769532940611,64.06869081,126.18,126.12,1.87793841]
[1769532941502,64.06869081,126.18,126.11,65.73920399]
[1769532942006,64.06869081,126.18,126.13,7.1431]
[1769532943811,65.94662922,126.18,126.13,7.1431]
[1769532944108,64.06869081,126.18,126.13,7.1431]
[1769532946915,64.06869081,126.18,126.14,7.1429]
[1769532947509,54.14953423,126.18,126.14,7.1429]
[1769532949313,1.87793841,126.19,126.15,7.1425]
[1769532949614,71.92306417,126.2,126.15,7.1425]
[1769532949809,65.94662922,126.2,126.15,7.1425]
[1769532950113,64.06869081,126.2,126.16,7.1417]
[1769532951015,64.06869081,126.2,126.17,7.1412]
[1769532952217,64.06869081,126.24,126.17,65.73920399]
[1769532952513,64.06869081,126.23,126.17,65.73920399]
[1769532953016,64.06869081,126.23,126.18,1.87793841]
[1769532954016,64.06869081,126.23,126.19,7.14]
[1769532955818,64.06869081,126.23,126.19,9.01793841]
[1769532956019,68.5806075,126.26,126.21,1.87793841]
[1769532956218,68.5806075,126.25,126.2,1.87793841]
[1769532957010,68.5806075,126.25,126.21,7.1391]
[1769532957216,68.5806075,126.25,126.19,1.87793841]
[1769532958021,68.5806075,126.23,126.18,1.87793841]
[1769532958417,68.5806075,126.23,126.17,1.87793841]
[1769532958715,68.5806075,126.23,126.18,1.87793841]
[1769532959422,68.5806075,126.23,126.17,1.87793841]
[1769532960023,70.45854591,126.23,126.17,7.141]
[1769532960212,70.45854591,126.23,126.15,493.04876517]
[1769532960522,70.45854591,126.23,126.18,7.1408]
[1769532960714,68.5806075,126.23,126.18,7.1408]
[1769532962109,70.45854591,126.23,126.18,7.1408]
[1769532962525,68.5806075,126.23,126.18,7.1408]
[1769532962822,70.45854591,126.23,126.18,7.1408]
[1769532963326,70.45854591,126.25,126.19,7.1402]
[1769532963527,68.5806075,126.25,126.17,176.55226517]
[1769532964321,68.5806075,126.25,126.18,63.58922676]
[1769532965020,68.5806075,126.25,126.2,7.1397]
[1769532965415,68.5806075,126.25,126.19,65.46716517]
[1769532965620,68.5806075,126.25,126.2,1.87793841]
[1769532966023,68.5806075,126.25,126.21,7.1391]
[1769532968232,68.5806075,126.27,126.22,7.1382]
[1769532969626,68.5806075,126.27,126.2,63.58922676]
[1769532969931,68.5806075,126.27,126.21,7.1391]
[1769532971033,75.7165075,126.27,126.21,7.1391]
[1769532971733,77.59444591,126.27,126.21,7.1391]
[1769532972234,75.7165075,126.27,126.21,7.1391]
[1769532973427,77.59444591,126.27,126.21,7.1391]
[1769532973734,68.5806075,126.25,126.2,7.1397]
[1769532974830,68.5806075,126.25,126.2,9.01763841]
[1769532975135,68.5806075,126.25,126.2,7.1397]
[1769532976740,70.45854591,126.27,126.21,7.139]
[1769532977537,70.45854591,126.27,126.2,63.58922676]
[1769532977538,70.45854591,126.27,126.2,70.72882676]
[1769532978433,77.59434591,126.27,126.2,70.72882676]
[1769532978634,70.45854591,126.27,126.21,7.1389]
[1769532978940,70.45854591,126.27,126.2,63.58922676]
[1769532979239,70.45854591,126.27,126.22,7.1385]
[1769532979741,70.45854591,126.27,126.21,7.1391]
[1769532980043,70.45854591,126.26,126.21,7.1391]
[1769532986339,65.50922577,126.25,126.21,7.1391]
[1769532986945,63.63128736,126.25,126.21,7.1391]
[1769532987552,65.50922577,126.25,126.21,7.1391]
[1769532987740,63.63128736,126.25,126.21,7.1391]
[1769532992340,53.71806606,126.25,126.21,7.1391]
[1769532997660,55.59507448,126.25,126.21,7.1391]
[1769532999062,65.50829578,126.22,126.15,69.46504484]
[1769532999860,65.50829578,126.22,126.17,7.1413]
[1769533000859,65.50829578,126.2,126.15,7.142]
[1769533001150,1.87700842,126.17,126.11,69.46504484]
[1769533001347,65.50829578,126.18,126.11,69.46504484]
[1769533001553,65.50829578,126.18,126.13,7.1436]
[1769533001756,65.50829578,126.18,126.11,71.34205326]
[1769533002361,65.50829578,126.18,126.14,7.143]
[1769533003254,65.50829578,126.18,126.13,7.1435]
[1769533003454,65.50829578,126.17,126.13,7.1435]
[1769533003656,65.50829578,126.17,126.11,76.60924484]
[1769533003854,65.50829578,126.17,126.11,69.46504484]
[1769533005052,65.50829578,126.17,126.12,7.1442]
[1769533006358,1.87700842,126.16,126.12,7.1442]
[1769533008457,65.50829578,126.17,126.12,7.1442]
[1769533009660,63.63128736,126.19,126.13,76.60864484]
[1769533009855,111.0395,126.23,126.13,76.60864484]
[1769533009856,65.50829578,126.18,126.13,76.60864484]
[1769533010256,1.87700842,126.17,126.13,76.60864484]
[1769533010961,65.50829578,126.17,126.13,7.1436]
[1769533011165,1.87700842,126.16,126.13,7.1436]
[1769533011367,65.50829578,126.16,126.11,7.1445]
[1769533011768,63.63128736,126.16,126.11,7.1445]
[1769533012461,63.63128736,126.16,126.11,76.60954484]
[1769533013661,63.63128736,126.16,126.12,7.1442]
[1769533017569,65.50829578,126.16,126.11,7.1448]
[1769533018870,63.63128736,126.16,126.11,7.1448]
[1769533019172,63.63128736,126.16,126.12,7.1441]
[1769533020171,1.87700842,126.17,126.12,7.1441]
[1769533020472,67.28568608,126.18,126.13,7.1434]
[1769533020869,65.40867766,126.18,126.12,66.10578187]
[1769533022078,1.87700842,126.21,126.13,67.98279029]
[1769533023074,1.87700842,126.21,126.16,7.1416]
[1769533023477,1.87700842,126.21,126.13,384.50279029]
[1769533023873,1.87700842,126.21,126.15,7.1425]
[1769533024075,65.40867766,126.2,126.15,7.1425]
[1769533029193,65.40867766,126.2,126.14,7.1431]
[1769533029684,65.40867766,126.2,126.12,384.50279029]
[1769533030892,72.54847766,126.2,126.13,7.1436]
[1769533034393,65.40867766,126.18,126.11,318.37700842]
[1769533034891,65.40867766,126.18,126.1,382.60578187]
[1769533035994,65.40867766,126.16,126.1,66.10578187]
[1769533036383,65.40867766,126.18,126.11,67.98279029]
[1769533037291,72.54947766,126.18,126.11,75.12699029]
[1769533037887,72.54947766,126.18,126.12,7.144]
[1769533043094,72.54947766,126.18,126.11,1.87700842]
[1769533043095,64.83691514,126.16,126.1,73.73616545]
[1769533043401,64.83691514,126.14,126.08,66.59126545]
[1769533044200,54.91543176,126.14,126.08,66.59126545]
[1769533044997,54.91543176,126.14,126.09,7.1458]
[1769533046705,69.21679903,126.13,126.08,66.59126545]
[1769533048706,67.33979061,126.13,126.08,73.73776545]
[1769533051009,69.21679903,126.16,126.09,69.2681495]
[1769533051209,6.02584222,126.15,126.09,71.14515792]
[1769533051398,67.33979061,126.16,126.11,7.1447]
[1769533053398,74.48069061,126.18,126.12,7.1442]
[1769533053610,6.02232406,126.17,126.12,7.1442]
[1769533054013,73.36211467,126.17,126.12,7.1442]
[1769533054308,67.33979061,126.17,126.12,7.1442]
[1769533054705,67.33979061,126.17,126.12,78.29190487]
[1769533054905,67.33979061,126.19,126.12,78.29190487]
[1769533055108,73.36227495,126.18,126.12,78.29190487]
[1769533055304,67.33979061,126.18,126.12,78.29190487]
[1769533055810,67.33979061,126.18,126.09,111.1569]
[1769533055811,67.33979061,126.18,126.14,1.87955537]
[1769533057011,67.33979061,126.18,126.14,9.02255537]
[1769533058411,67.33979061,126.21,126.15,7.1424]
[1769533058614,73.36342617,126.2,126.15,7.1424]
[1769533058815,67.33979061,126.2,126.15,7.1424]
[1769533059920,67.33979061,126.2,126.15,76.4105495]
[1769533060123,67.33979061,126.2,126.16,9.02125537]
[1769533060623,67.33979061,126.22,126.17,7.1411]
[1769533063920,67.33979061,126.22,126.15,9.02165537]
[1769533064216,67.33979061,126.2,126.15,9.02165537]
[1769533068722,67.33979061,126.2,126.13,69.2681495]
[1769533068929,67.33979061,126.2,126.13,1.87955537]
[1769533068930,74.47959061,126.2,126.13,1.87955537]
[1769533070029,74.47959061,126.2,126.13,9.02305537]
[1769533071128,67.33979061,126.18,126.13,9.02305537]
[1769533071328,67.33979061,126.18,126.14,7.1429]
[1769533071933,67.33979061,126.21,126.15,9.02195537]
[1769533072628,67.33979061,126.23,126.17,1.87955537]
[1769533072931,73.35683397,126.22,126.17,1.87955537]
[1769533073131,67.33979061,126.22,126.17,1.87955537]
[1769533073328,74.47669061,126.25,126.18,69.2681495]
[1769533073529,67.33979061,126.25,126.19,1.87955537]
[1769533074127,74.47669061,126.25,126.19,9.01985537]
[1769533074333,74.47669061,126.25,126.19,1.87955537]
[1769533077137,63.41214762,126.23,126.18,7.1408]
[1769533080036,63.41214762,126.23,126.19,9.01965537]
[1769533080737,63.41214762,126.26,126.21,1.87955537]
[1769533081137,70.54774762,126.28,126.23,1.87955537]
[1769533081938,70.54774762,126.28,126.21,1.87955537]
[1769533083041,70.54774762,126.28,126.21,9.01865537]
[1769533083341,70.54774762,126.28,126.21,1.87955537]
[1769533083535,70.54774762,126.28,126.19,65.39045638]
[1769533083740,70.54774762,126.28,126.2,7.1391]
[1769533083935,70.54774762,126.28,126.21,1.87955537]
[1769533084932,70.54774762,126.28,126.22,7.1385]
[1769533085130,70.54774762,126.28,126.21,1.87955537]
[1769533085538,63.41214762,126.26,126.18,407.6366]
[1769533085745,63.41214762,126.26,126.2,1.87955537]
[1769533086839,63.41214762,126.26,126.2,9.01905537]
[1769533091547,63.41214762,126.28,126.22,1.87955537]
[1769533092244,63.41214762,126.28,126.22,9.01805537]
[1769533093150,63.41214762,126.28,126.23,7.1379]
[1769533093450,63.41214762,126.28,126.24,1.87955537]
[1769533093650,63.41214762,126.3,126.24,67.27001175]
[1769533093847,63.41214762,126.3,126.26,1.87955537]
[1769533094749,63.41214762,126.3,126.24,1.87955537]
[1769533095141,65.29170299,126.3,126.23,7.1379]
[1769533096357,65.29170299,126.3,126.24,7.1374]
[1769533096548,63.41214762,126.3,126.24,1.87955537]
[1769533097747,63.41214762,126.3,126.22,9.01755537]
[1769533097946,63.41214762,126.28,126.22,7.138]
[1769533098348,63.41214762,126.28,126.23,7.1379]
[1769533098547,63.41214762,126.28,126.22,67.27001175]
[1769533099955,63.41214762,126.28,126.24,7.1374]
[1769533100162,63.41214762,126.32,126.24,67.27001175]
[1769533101158,63.41214762,126.32,126.26,7.136]
[1769533101455,63.41214762,126.32,126.24,65.39045638]
[1769533101657,63.41214762,126.32,126.24,67.27001175]
[1769533102460,70.54564762,126.32,126.25,7.1363]
[1769533104659,68.10992814,126.3,126.24,67.27001175]
[1769533105960,68.10992814,126.3,126.24,74.40741175]
[1769533109064,68.10992814,126.3,126.25,7.1368]
[1769533109362,68.10992814,126.3,126.25,75.56875135]
[1769533110164,68.10992814,126.32,126.26,77.44780672]
[1769533110464,68.10992814,126.34,126.28,70.31150672]
[1769533110663,68.10992814,126.34,126.28,68.43195135]
[1769533110864,68.10992814,126.34,126.28,70.31150672]
[1769533111977,68.10992814,126.34,126.29,7.1346]
[1769533116175,68.10992814,126.34,126.28,7.1351]
[1769533116176,69.98420548,126.34,126.28,7.1351]
[1769533116379,77.11600548,126.34,126.28,7.1351]
[1769533116778,77.11600548,126.34,126.26,1.87427734]
[1769533116779,69.98420548,126.32,126.26,7.136]
[1769533117079,77.11730548,126.32,126.26,7.136]
[1769533117877,77.11730548,126.32,126.25,7.1368]